[Event "*** Titled Tuesday Blitz"]
[Site "Chess.com"]
[Date "2018.06.05"]
[Round "10"]
[White "dalmatinac101"]
[Black "maximlavrov"]
[Result "0-1"]
[WhiteElo "2713"]
[BlackElo "2500"]
[TimeControl "180+2"]
[EndTime "15:24:05 PDT"]
[Termination "maximlavrov won on time"]

1. e4 {[%clk 0:03:01.9]} 1... g6 {[%clk 0:02:58.2]} 2. d4 {[%clk 0:03:02.7]}
2... Bg7 {[%clk 0:02:59.5]} 3. Nc3 {[%clk 0:03:04.3]} 3... d6 {[%clk 0:03:00.9]}
4. Be3 {[%clk 0:03:05.4]} 4... a6 {[%clk 0:03:02.2]} 5. Qd2 {[%clk 0:03:06.8]}
5... b5 {[%clk 0:03:03.7]} 6. h4 {[%clk 0:03:08.2]} 6... Bb7 {[%clk 0:03:04.8]}
7. f3 {[%clk 0:03:09.5]} 7... Nd7 {[%clk 0:03:06.4]} 8. h5 {[%clk 0:03:10.8]}
8... c5 {[%clk 0:03:07.4]} 9. h6 {[%clk 0:03:12.3]} 9... Bxd4 {[%clk 0:03:07.6]}
10. Bxd4 {[%clk 0:03:13.3]} 10... cxd4 {[%clk 0:03:09.5]} 11. Qxd4 {[%clk
0:03:14]} 11... Ngf6 {[%clk 0:03:11.4]} 12. O-O-O {[%clk 0:03:14.7]} 12... Qc7
{[%clk 0:03:12.6]} 13. g4 {[%clk 0:03:13.8]} 13... Qc5 {[%clk 0:02:59.4]} 14.
Nge2 {[%clk 0:03:10.5]} 14... Qxd4 {[%clk 0:02:59.8]} 15. Nxd4 {[%clk
0:03:11.2]} 15... Rc8 {[%clk 0:03:00.9]} 16. a3 {[%clk 0:03:11.7]} 16... Ne5
{[%clk 0:03:00.6]} 17. g5 {[%clk 0:03:11]} 17... Nfd7 {[%clk 0:03:00.7]} 18. Bh3
{[%clk 0:03:11.7]} 18... e6 {[%clk 0:02:58.4]} 19. f4 {[%clk 0:03:04.1]} 19...
Nc4 {[%clk 0:02:58.8]} 20. Rhe1 {[%clk 0:03:03.7]} 20... Ke7 {[%clk 0:02:57.7]}
21. f5 {[%clk 0:03:01.2]} 21... Nf8 {[%clk 0:02:20.7]} 22. f6+ {[%clk
0:02:53.7]} 22... Kd8 {[%clk 0:01:46.7]} 23. b3 {[%clk 0:02:38.1]} 23... Ne5
{[%clk 0:01:43.6]} 24. Kb2 {[%clk 0:02:23.7]} 24... Nfd7 {[%clk 0:01:44.4]} 25.
Bxe6 {[%clk 0:02:17.9]} 25... fxe6 {[%clk 0:01:39.1]} 26. Nxe6+ {[%clk
0:02:19.8]} 26... Ke8 {[%clk 0:01:40.5]} 27. Rxd6 {[%clk 0:02:21]} 27... Rc6
{[%clk 0:01:40.3]} 28. Red1 {[%clk 0:02:18.9]} 28... Rxd6 {[%clk 0:01:41.4]} 29.
Rxd6 {[%clk 0:02:20.8]} 29... Kf7 {[%clk 0:01:42.8]} 30. Nd5 {[%clk 0:02:09.3]}
30... Rc8 {[%clk 0:01:41.4]} 31. Nec7 {[%clk 0:02:00.8]} 31... Nc5 {[%clk
0:01:30]} 32. Kc1 {[%clk 0:00:46.7]} 32... Bxd5 {[%clk 0:01:25.5]} 33. Nxd5
{[%clk 0:00:44.1]} 33... Nxb3+ {[%clk 0:01:26.6]} 34. Kd1 {[%clk 0:00:42.6]}
34... Nc5 {[%clk 0:01:27.5]} 35. Ne7 {[%clk 0:00:40]} 35... Rc7 {[%clk
0:01:25.6]} 36. Rd5 {[%clk 0:00:40.6]} 36... Nc4 {[%clk 0:01:22.1]} 37. Nf5
{[%clk 0:00:21.5]} 37... gxf5 {[%clk 0:01:16]} 38. exf5 {[%clk 0:00:21.3]} 38...
Ne3+ {[%clk 0:01:14.2]} 0-1

[Event "*** Titled Tuesday Blitz"]
[Site "Chess.com"]
[Date "2018.06.05"]
[Round "10"]
[White "DSCC1"]
[Black "EndgameGrinder"]
[Result "0-1"]
[WhiteElo "2131"]
[BlackElo "2489"]
[TimeControl "180+2"]
[EndTime "15:24:24 PDT"]
[Termination "EndgameGrinder won by resignation"]

1. d4 {[%clk 0:03:01.9]} 1... Nf6 {[%clk 0:03:00.7]} 2. Nf3 {[%clk 0:03:03.1]}
2... e6 {[%clk 0:03:01.4]} 3. Bf4 {[%clk 0:03:04.3]} 3... d5 {[%clk 0:03:02]} 4.
e3 {[%clk 0:03:05.4]} 4... Bd6 {[%clk 0:03:02.7]} 5. Bg3 {[%clk 0:03:06.1]} 5...
O-O {[%clk 0:03:03.4]} 6. Nbd2 {[%clk 0:03:06.8]} 6... c5 {[%clk 0:03:04.1]} 7.
c3 {[%clk 0:03:08.3]} 7... Nc6 {[%clk 0:03:05.1]} 8. Bd3 {[%clk 0:03:09.7]} 8...
b6 {[%clk 0:02:56.5]} 9. Ne5 {[%clk 0:03:10.4]} 9... Bb7 {[%clk 0:02:54.3]} 10.
f4 {[%clk 0:03:11.1]} 10... Ne7 {[%clk 0:02:51.8]} 11. Bh4 {[%clk 0:03:12.1]}
11... Nf5 {[%clk 0:02:50.6]} 12. Bf2 {[%clk 0:03:12.4]} 12... Ne4 {[%clk
0:02:42]} 13. Nxe4 {[%clk 0:02:46.2]} 13... dxe4 {[%clk 0:02:43.9]} 14. Be2
{[%clk 0:02:47.3]} 14... cxd4 {[%clk 0:02:35.5]} 15. cxd4 {[%clk 0:02:47.7]}
15... Rc8 {[%clk 0:02:34.7]} 16. a3 {[%clk 0:02:15.9]} 16... Bd5 {[%clk
0:02:22.9]} 17. Rc1 {[%clk 0:01:59.1]} 17... Qe7 {[%clk 0:02:10.4]} 18. O-O
{[%clk 0:01:53.8]} 18... Qb7 {[%clk 0:01:42.9]} 19. Qa4 {[%clk 0:01:47]} 19...
a5 {[%clk 0:01:25.6]} 20. Bb5 {[%clk 0:01:11.1]} 20... f6 {[%clk 0:01:16.8]} 21.
Nc6 {[%clk 0:00:49]} 21... Rc7 {[%clk 0:01:14]} 22. Rc2 {[%clk 0:00:40.4]} 22...
Rfc8 {[%clk 0:01:13.9]} 23. Rfc1 {[%clk 0:00:41.9]} 23... Kf8 {[%clk 0:01:12.8]}
24. g4 {[%clk 0:00:24.6]} 24... Ne7 {[%clk 0:01:12.6]} 25. Nxe7 {[%clk
0:00:25.7]} 25... Kxe7 {[%clk 0:01:12.3]} 26. Rxc7+ {[%clk 0:00:25.4]} 26...
Rxc7 {[%clk 0:01:14.2]} 27. Rc2 {[%clk 0:00:21.5]} 27... Qc8 {[%clk 0:01:11.9]}
28. Rxc7+ {[%clk 0:00:17.5]} 28... Qxc7 {[%clk 0:01:13.8]} 29. Qd1 {[%clk
0:00:17.2]} 29... Bc4 {[%clk 0:01:01.8]} 30. Bxc4 {[%clk 0:00:13.4]} 30... Qxc4
{[%clk 0:01:03.7]} 31. Be1 {[%clk 0:00:12.4]} 31... Kd7 {[%clk 0:00:34.3]} 32.
a4 {[%clk 0:00:11.2]} 32... Kc6 {[%clk 0:00:32.1]} 33. b3 {[%clk 0:00:12.4]}
33... Qd3 {[%clk 0:00:32.5]} 34. Qxd3 {[%clk 0:00:11.9]} 34... exd3 {[%clk
0:00:33.4]} 35. e4 {[%clk 0:00:06.8]} 35... Bxf4 {[%clk 0:00:34.3]} 36. Kf1
{[%clk 0:00:05.8]} 36... d2 {[%clk 0:00:35.6]} 0-1

[Event "*** Titled Tuesday Blitz"]
[Site "Chess.com"]
[Date "2018.06.05"]
[Round "10"]
[White "aa175"]
[Black "ChessicallyInclined"]
[Result "0-1"]
[WhiteElo "1912"]
[BlackElo "2255"]
[TimeControl "180+2"]
[EndTime "15:24:25 PDT"]
[Termination "ChessicallyInclined won by checkmate"]

1. e4 {[%clk 0:03:01.9]} 1... e5 {[%clk 0:03:00.5]} 2. Nf3 {[%clk 0:03:02.1]}
2... Nc6 {[%clk 0:03:01.6]} 3. Bc4 {[%clk 0:03:02.8]} 3... Nf6 {[%clk
0:03:01.9]} 4. d3 {[%clk 0:03:02.3]} 4... Be7 {[%clk 0:03:02]} 5. Nc3 {[%clk
0:03:01]} 5... O-O {[%clk 0:03:00.1]} 6. h3 {[%clk 0:02:53.6]} 6... d6 {[%clk
0:03:00]} 7. a3 {[%clk 0:02:53.2]} 7... h6 {[%clk 0:02:57.2]} 8. O-O {[%clk
0:02:49.2]} 8... Be6 {[%clk 0:02:56.7]} 9. Nd5 {[%clk 0:02:43.6]} 9... Re8
{[%clk 0:02:39.4]} 10. Nxf6+ {[%clk 0:02:33.1]} 10... Bxf6 {[%clk 0:02:40.1]}
11. Bxe6 {[%clk 0:02:35]} 11... Rxe6 {[%clk 0:02:41.4]} 12. Be3 {[%clk
0:02:35.1]} 12... d5 {[%clk 0:02:42.2]} 13. Qe2 {[%clk 0:02:24.6]} 13... d4
{[%clk 0:02:39.7]} 14. Bd2 {[%clk 0:02:25.8]} 14... Qd7 {[%clk 0:02:39.8]} 15.
b4 {[%clk 0:02:22.3]} 15... Ne7 {[%clk 0:02:35]} 16. Nh2 {[%clk 0:02:15.7]}
16... Ng6 {[%clk 0:02:27.7]} 17. Ng4 {[%clk 0:02:15.8]} 17... Be7 {[%clk
0:02:28.1]} 18. a4 {[%clk 0:02:09.7]} 18... Bf8 {[%clk 0:02:19.6]} 19. Qf3
{[%clk 0:01:55.5]} 19... c5 {[%clk 0:02:13.1]} 20. bxc5 {[%clk 0:01:47.1]} 20...
Bxc5 {[%clk 0:02:11.9]} 21. Rab1 {[%clk 0:01:40.9]} 21... Bf8 {[%clk 0:02:10.6]}
22. Qg3 {[%clk 0:01:19.4]} 22... Qxa4 {[%clk 0:02:06.9]} 23. Rxb7 {[%clk
0:01:20.2]} 23... Qxc2 {[%clk 0:02:06.3]} 24. Qf3 {[%clk 0:01:00.2]} 24... Re7
{[%clk 0:02:04]} 25. Rxe7 {[%clk 0:00:52.3]} 25... Bxe7 {[%clk 0:02:05.9]} 26.
Ba5 {[%clk 0:00:44.6]} 26... Qa2 {[%clk 0:02:00.3]} 27. Bc7 {[%clk 0:00:38.2]}
27... Qe6 {[%clk 0:01:59]} 28. Qf5 {[%clk 0:00:11]} 28... Bf6 {[%clk 0:01:46.1]}
29. Qxe6 {[%clk 0:00:10.1]} 29... fxe6 {[%clk 0:01:48]} 30. Ra1 {[%clk
0:00:09.8]} 30... a6 {[%clk 0:01:43.8]} 31. Ra5 {[%clk 0:00:09.1]} 31... Nf4
{[%clk 0:01:42.4]} 32. Bxe5 {[%clk 0:00:05.2]} 32... Nxd3 {[%clk 0:01:39.8]} 33.
Bxf6 {[%clk 0:00:03]} 33... gxf6 {[%clk 0:01:40.8]} 34. Nxf6+ {[%clk 0:00:04.9]}
34... Kf7 {[%clk 0:01:41.7]} 35. Ng4 {[%clk 0:00:06.2]} 35... h5 {[%clk
0:01:40.4]} 36. Rxh5 {[%clk 0:00:06.6]} 36... a5 {[%clk 0:01:41.6]} 37. Rh7+
{[%clk 0:00:05.3]} 37... Kg6 {[%clk 0:01:42.2]} 38. Re7 {[%clk 0:00:06.3]} 38...
a4 {[%clk 0:01:41.8]} 39. Rxe6+ {[%clk 0:00:05.4]} 39... Kf7 {[%clk 0:01:43.3]}
40. Rb6 {[%clk 0:00:02.7]} 40... a3 {[%clk 0:01:44]} 41. Rb1 {[%clk 0:00:03.8]}
41... a2 {[%clk 0:01:45.4]} 42. Ra1 {[%clk 0:00:05.1]} 42... Nb4 {[%clk
0:01:47]} 43. Ne5+ {[%clk 0:00:05.8]} 43... Ke6 {[%clk 0:01:47.9]} 44. Nf3
{[%clk 0:00:05.5]} 44... Nc2 {[%clk 0:01:47.4]} 45. Rc1 {[%clk 0:00:04.1]} 45...
a1=Q {[%clk 0:01:48.2]} 46. Rxa1 {[%clk 0:00:05]} 46... Rxa1+ {[%clk 0:01:49.7]}
47. Kh2 {[%clk 0:00:06.3]} 47... d3 {[%clk 0:01:50.5]} 48. Kg3 {[%clk
0:00:06.6]} 48... Ne1 {[%clk 0:01:50.9]} 49. Nd2 {[%clk 0:00:03.8]} 49... Ra2
{[%clk 0:01:50.5]} 50. Nb3 {[%clk 0:00:03.1]} 50... d2 {[%clk 0:01:50]} 51. Nxd2
{[%clk 0:00:03.7]} 51... Rxd2 {[%clk 0:01:51.9]} 52. h4 {[%clk 0:00:03]} 52...
Ke5 {[%clk 0:01:52.3]} 53. f3 {[%clk 0:00:02.1]} 53... Rxg2+ {[%clk 0:01:53]}
54. Kh3 {[%clk 0:00:02.3]} 54... Kf4 {[%clk 0:01:52.2]} 55. e5 {[%clk
0:00:02.7]} 55... Rg3+ {[%clk 0:01:54.1]} 56. Kh2 {[%clk 0:00:02.5]} 56... Nxf3+
{[%clk 0:01:56]} 57. Kh1 {[%clk 0:00:04.1]} 57... Rg1# {[%clk 0:01:57.9]} 0-1

[Event "*** Titled Tuesday Blitz"]
[Site "Chess.com"]
[Date "2018.06.05"]
[Round "10"]
[White "TheCount"]
[Black "Vamostodorecto"]
[Result "0-1"]
[WhiteElo "2507"]
[BlackElo "2366"]
[TimeControl "180+2"]
[EndTime "15:24:33 PDT"]
[Termination "Vamostodorecto won by resignation"]

1. b3 {[%clk 0:03:01.9]} 1... e5 {[%clk 0:02:59.5]} 2. Bb2 {[%clk 0:03:02.1]}
2... Nc6 {[%clk 0:03:01.4]} 3. Nf3 {[%clk 0:03:03.2]} 3... d6 {[%clk 0:03:02.4]}
4. d4 {[%clk 0:03:03.3]} 4... g6 {[%clk 0:02:59.4]} 5. dxe5 {[%clk 0:03:00.7]}
5... Bg7 {[%clk 0:02:59.9]} 6. Nc3 {[%clk 0:02:47.8]} 6... Nxe5 {[%clk
0:02:58.3]} 7. Nxe5 {[%clk 0:02:39.6]} 7... Bxe5 {[%clk 0:02:57.6]} 8. Qd2
{[%clk 0:02:36.1]} 8... Ne7 {[%clk 0:02:54.7]} 9. h4 {[%clk 0:02:31.8]} 9... h5
{[%clk 0:02:50.7]} 10. O-O-O {[%clk 0:02:17.4]} 10... Be6 {[%clk 0:02:44.3]} 11.
f4 {[%clk 0:02:13.1]} 11... Bg7 {[%clk 0:02:35.7]} 12. e4 {[%clk 0:02:14.4]}
12... Qd7 {[%clk 0:02:33.5]} 13. Bb5 {[%clk 0:02:05.1]} 13... c6 {[%clk
0:02:29.6]} 14. Be2 {[%clk 0:02:06]} 14... O-O-O {[%clk 0:02:28]} 15. Kb1 {[%clk
0:01:55.5]} 15... d5 {[%clk 0:02:27]} 16. e5 {[%clk 0:01:22.8]} 16... Nf5 {[%clk
0:02:14.4]} 17. Bf3 {[%clk 0:01:21.2]} 17... Kb8 {[%clk 0:02:07.8]} 18. Qf2
{[%clk 0:01:21.7]} 18... Bf8 {[%clk 0:01:47.6]} 19. Ne4 {[%clk 0:01:20.6]} 19...
Qc7 {[%clk 0:01:45.1]} 20. Ng5 {[%clk 0:01:19.7]} 20... Qa5 {[%clk 0:01:41.1]}
21. g4 {[%clk 0:01:18.3]} 21... Bc5 {[%clk 0:01:39.5]} 22. Qe1 {[%clk
0:00:54.3]} 22... Qxe1 {[%clk 0:01:33]} 23. Rdxe1 {[%clk 0:00:56.2]} 23... hxg4
{[%clk 0:01:26.8]} 24. Bxg4 {[%clk 0:00:58.1]} 24... Bf2 {[%clk 0:01:21.2]} 25.
Bxf5 {[%clk 0:00:59]} 25... gxf5 {[%clk 0:01:16.1]} 26. Ref1 {[%clk 0:00:29.8]}
26... Bxh4 {[%clk 0:01:15.4]} 27. Nf3 {[%clk 0:00:11.8]} 27... Be7 {[%clk
0:01:15.3]} 28. Nd4 {[%clk 0:00:11.6]} 28... Rdg8 {[%clk 0:01:11.1]} 29. a3
{[%clk 0:00:11.9]} 29... a6 {[%clk 0:01:07.9]} 30. b4 {[%clk 0:00:11.3]} 30...
c5 {[%clk 0:01:03.7]} 31. bxc5 {[%clk 0:00:10]} 31... Bxc5 {[%clk 0:01:05.6]}
32. Rxh8 {[%clk 0:00:09.5]} 32... Rxh8 {[%clk 0:01:05]} 33. Rg1 {[%clk
0:00:10.8]} 33... Rh4 {[%clk 0:01:00.1]} 34. Nxe6 {[%clk 0:00:12.1]} 34... Bxg1
{[%clk 0:00:59.3]} 35. Ng5 {[%clk 0:00:09.6]} 35... Rxf4 {[%clk 0:00:56.5]} 36.
Nxf7 {[%clk 0:00:10.6]} 36... Bd4 {[%clk 0:00:53.9]} 37. Bxd4 {[%clk 0:00:05.7]}
37... Rxd4 {[%clk 0:00:55.8]} 38. Nd6 {[%clk 0:00:07.4]} 38... Rd1+ {[%clk
0:00:54.8]} 39. Kb2 {[%clk 0:00:08.4]} 39... f4 {[%clk 0:00:53.6]} 40. e6 {[%clk
0:00:07.8]} 40... Re1 {[%clk 0:00:53]} 0-1

[Event "*** Titled Tuesday Blitz"]
[Site "Chess.com"]
[Date "2018.06.05"]
[Round "10"]
[White "Siemba"]
[Black "MateusViageiro"]
[Result "1/2-1/2"]
[WhiteElo "2058"]
[BlackElo "2173"]
[TimeControl "180+2"]
[EndTime "15:24:37 PDT"]
[Termination "Game drawn - insufficient material"]

1. e4 {[%clk 0:03:01.9]} 1... c5 {[%clk 0:03:00]} 2. Nf3 {[%clk 0:03:02.8]} 2...
d6 {[%clk 0:02:58]} 3. d4 {[%clk 0:02:50.7]} 3... cxd4 {[%clk 0:02:58.5]} 4.
Nxd4 {[%clk 0:02:51]} 4... Nf6 {[%clk 0:02:59.5]} 5. Nc3 {[%clk 0:02:50.7]} 5...
a6 {[%clk 0:03:00.4]} 6. Be3 {[%clk 0:02:51.2]} 6... e5 {[%clk 0:02:55.6]} 7.
Nb3 {[%clk 0:02:49.4]} 7... Be6 {[%clk 0:02:56.6]} 8. f3 {[%clk 0:02:49.1]} 8...
Nbd7 {[%clk 0:02:57.4]} 9. Qd2 {[%clk 0:02:50.2]} 9... Rc8 {[%clk 0:02:58.3]}
10. g4 {[%clk 0:02:50.4]} 10... h6 {[%clk 0:02:59.3]} 11. O-O-O {[%clk 0:02:23]}
11... Qc7 {[%clk 0:02:59.1]} 12. Rg1 {[%clk 0:02:22.4]} 12... Nc5 {[%clk
0:02:58.1]} 13. Nxc5 {[%clk 0:02:13.6]} 13... d5 {[%clk 0:02:59.2]} 14. g5
{[%clk 0:02:15.5]} 14... d4 {[%clk 0:02:48.2]} 15. Nxe6 {[%clk 0:02:00.7]} 15...
fxe6 {[%clk 0:02:48.7]} 16. gxf6 {[%clk 0:01:57.5]} 16... dxe3 {[%clk
0:02:45.5]} 17. f7+ {[%clk 0:01:55.6]} 17... Qxf7 {[%clk 0:02:40.6]} 18. Qxe3
{[%clk 0:01:54.4]} 18... Bc5 {[%clk 0:02:37.9]} 19. Bb5+ {[%clk 0:01:09.1]}
19... axb5 {[%clk 0:02:30.6]} 20. Qe2 {[%clk 0:01:04.4]} 20... O-O {[%clk
0:02:23]} 21. Rg3 {[%clk 0:00:49.4]} 21... b4 {[%clk 0:02:24]} 22. Nb5 {[%clk
0:00:46.2]} 22... Kh7 {[%clk 0:02:22.5]} 23. Nd6 {[%clk 0:00:43.6]} 23... Qf4+
{[%clk 0:02:16.8]} 24. Kb1 {[%clk 0:00:43.6]} 24... Bxd6 {[%clk 0:02:18]} 25.
Rxd6 {[%clk 0:00:40.6]} 25... Rfd8 {[%clk 0:02:17.9]} 26. Rd1 {[%clk 0:00:29.1]}
26... Qe3 {[%clk 0:02:13.6]} 27. Qxe3 {[%clk 0:00:23.6]} 27... Rxd1+ {[%clk
0:02:12.2]} 28. Qc1 {[%clk 0:00:25.5]} 28... Rcd8 {[%clk 0:02:07]} 29. Rg1
{[%clk 0:00:24.3]} 29... Rxc1+ {[%clk 0:02:07.9]} 30. Kxc1 {[%clk 0:00:26.2]}
30... g5 {[%clk 0:02:09]} 31. Rd1 {[%clk 0:00:24.3]} 31... Ra8 {[%clk
0:02:08.9]} 32. Rd7+ {[%clk 0:00:25.1]} 32... Kg6 {[%clk 0:02:10]} 33. Rxb7
{[%clk 0:00:25.8]} 33... Rf8 {[%clk 0:02:07.6]} 34. Rxb4 {[%clk 0:00:22.9]}
34... Rxf3 {[%clk 0:02:08.6]} 35. a4 {[%clk 0:00:24.1]} 35... g4 {[%clk
0:02:09.6]} 36. a5 {[%clk 0:00:25.3]} 36... Rf8 {[%clk 0:02:08.3]} 37. Rb3
{[%clk 0:00:23.8]} 37... h5 {[%clk 0:02:09.3]} 38. Ra3 {[%clk 0:00:20.6]} 38...
Kg5 {[%clk 0:02:09.2]} 39. a6 {[%clk 0:00:20.6]} 39... Kf4 {[%clk 0:02:10.1]}
40. a7 {[%clk 0:00:20.9]} 40... Ra8 {[%clk 0:02:10.1]} 41. b4 {[%clk 0:00:22.4]}
41... h4 {[%clk 0:02:11.3]} 42. b5 {[%clk 0:00:23.4]} 42... g3 {[%clk
0:02:09.3]} 43. hxg3+ {[%clk 0:00:25.3]} 43... hxg3 {[%clk 0:02:11.2]} 44. Rxg3
{[%clk 0:00:26.7]} 44... Rxa7 {[%clk 0:02:11.4]} 45. Rb3 {[%clk 0:00:26.3]}
45... Kxe4 {[%clk 0:02:11.6]} 46. b6 {[%clk 0:00:25.7]} 46... Rb7 {[%clk
0:02:12.7]} 47. Kb2 {[%clk 0:00:23]} 47... Kd5 {[%clk 0:02:13.7]} 48. Rb5+
{[%clk 0:00:22]} 48... Kc6 {[%clk 0:02:12.4]} 49. Rxe5 {[%clk 0:00:21.5]} 49...
Rxb6+ {[%clk 0:02:13.5]} 50. Kc3 {[%clk 0:00:22.5]} 50... Kd6 {[%clk 0:02:14.9]}
51. Re4 {[%clk 0:00:21.7]} 51... Rc6+ {[%clk 0:02:15.6]} 52. Kd3 {[%clk
0:00:19.7]} 52... e5 {[%clk 0:02:14.1]} 53. Re1 {[%clk 0:00:20.3]} 53... Kd5
{[%clk 0:02:15]} 54. Kd2 {[%clk 0:00:19.7]} 54... Kd4 {[%clk 0:02:14.7]} 55. Re2
{[%clk 0:00:16]} 55... e4 {[%clk 0:02:14.8]} 56. c3+ {[%clk 0:00:14.1]} 56...
Rxc3 {[%clk 0:02:10.7]} 57. Rxe4+ {[%clk 0:00:15.1]} 57... Kxe4 {[%clk
0:02:12.6]} 58. Kxc3 {[%clk 0:00:16]} 1/2-1/2

[Event "*** Titled Tuesday Blitz"]
[Site "Chess.com"]
[Date "2018.06.05"]
[Round "10"]
[White "RiskyDecision"]
[Black "attack2mateU"]
[Result "0-1"]
[WhiteElo "2520"]
[BlackElo "2688"]
[TimeControl "180+2"]
[EndTime "15:24:57 PDT"]
[Termination "attack2mateU won on time"]

1. d4 {[%clk 0:03:01.9]} 1... Nf6 {[%clk 0:03:00.5]} 2. Bg5 {[%clk 0:03:02.3]}
2... d5 {[%clk 0:02:57.6]} 3. e3 {[%clk 0:03:03]} 3... Bf5 {[%clk 0:02:48.7]} 4.
Bxf6 {[%clk 0:02:51.1]} 4... gxf6 {[%clk 0:02:45.3]} 5. Nf3 {[%clk 0:02:44]}
5... e6 {[%clk 0:02:40.1]} 6. Bd3 {[%clk 0:02:40.4]} 6... Bg6 {[%clk 0:02:32.4]}
7. O-O {[%clk 0:02:36.8]} 7... Nd7 {[%clk 0:02:32.5]} 8. c4 {[%clk 0:02:31.5]}
8... c6 {[%clk 0:02:33.6]} 9. Nc3 {[%clk 0:02:30.7]} 9... Bb4 {[%clk 0:02:19.7]}
10. cxd5 {[%clk 0:02:22.5]} 10... cxd5 {[%clk 0:02:19.3]} 11. Rc1 {[%clk
0:02:18.2]} 11... O-O {[%clk 0:02:18.9]} 12. Bxg6 {[%clk 0:02:11.4]} 12... hxg6
{[%clk 0:02:17.8]} 13. Qb3 {[%clk 0:02:12.4]} 13... Bxc3 {[%clk 0:01:26.3]} 14.
Rxc3 {[%clk 0:02:12.5]} 14... Nb6 {[%clk 0:01:17.6]} 15. Nd2 {[%clk 0:01:53]}
15... Qd7 {[%clk 0:01:08.7]} 16. Rfc1 {[%clk 0:01:50.3]} 16... Rfc8 {[%clk
0:01:09.1]} 17. Rc5 {[%clk 0:01:16.8]} 17... Rxc5 {[%clk 0:00:57.6]} 18. Rxc5
{[%clk 0:01:16.8]} 18... Rc8 {[%clk 0:00:50.1]} 19. Qc3 {[%clk 0:00:44.1]} 19...
Rxc5 {[%clk 0:00:49.3]} 20. dxc5 {[%clk 0:00:44.5]} 20... Na4 {[%clk 0:00:43.9]}
21. Qxf6 {[%clk 0:00:45.1]} 21... Nxc5 {[%clk 0:00:43.3]} 22. h4 {[%clk
0:00:37.5]} 22... Qa4 {[%clk 0:00:28.1]} 23. Nf3 {[%clk 0:00:21.1]} 23... Ne4
{[%clk 0:00:26.8]} 24. Qd8+ {[%clk 0:00:19.9]} 24... Kg7 {[%clk 0:00:26.7]} 25.
h5 {[%clk 0:00:19.4]} 25... gxh5 {[%clk 0:00:24.9]} 26. Qh4 {[%clk 0:00:17.8]}
26... Qxa2 {[%clk 0:00:19.4]} 27. Qxh5 {[%clk 0:00:16.2]} 27... Qxb2 {[%clk
0:00:20.4]} 28. Qg4+ {[%clk 0:00:14.6]} 28... Kf8 {[%clk 0:00:20.6]} 29. Qh4
{[%clk 0:00:16.2]} 29... Ke8 {[%clk 0:00:19.5]} 30. Nd4 {[%clk 0:00:14.8]} 30...
Kd7 {[%clk 0:00:15.5]} 31. f3 {[%clk 0:00:15.4]} 31... Qc1+ {[%clk 0:00:15.7]}
32. Kh2 {[%clk 0:00:15.8]} 32... Qxe3 {[%clk 0:00:16.3]} 33. Nb5 {[%clk
0:00:11.6]} 33... Qg5 {[%clk 0:00:10.6]} 34. Qe1 {[%clk 0:00:08]} 34... Nd6
{[%clk 0:00:09.1]} 35. Nxa7 {[%clk 0:00:03]} 35... d4 {[%clk 0:00:07.7]} 36. Qb4
{[%clk 0:00:02.2]} 36... d3 {[%clk 0:00:06.2]} 0-1

[Event "*** Titled Tuesday Blitz"]
[Site "Chess.com"]
[Date "2018.06.05"]
[Round "10"]
[White "GMNeiksans"]
[Black "NDePinEsPeRG"]
[Result "0-1"]
[WhiteElo "2730"]
[BlackElo "2653"]
[TimeControl "180+2"]
[EndTime "15:25:02 PDT"]
[Termination "NDePinEsPeRG won by resignation"]

1. e4 {[%clk 0:03:01.9]} 1... c5 {[%clk 0:02:57.1]} 2. Nf3 {[%clk 0:03:02.5]}
2... d6 {[%clk 0:02:53.2]} 3. Bb5+ {[%clk 0:03:02.9]} 3... Nd7 {[%clk
0:02:53.3]} 4. O-O {[%clk 0:03:03.2]} 4... a6 {[%clk 0:02:47.3]} 5. Bd3 {[%clk
0:02:57.3]} 5... Ngf6 {[%clk 0:02:46]} 6. Re1 {[%clk 0:02:58.1]} 6... g6 {[%clk
0:02:41.6]} 7. c3 {[%clk 0:02:57.6]} 7... Bg7 {[%clk 0:02:24]} 8. Bc2 {[%clk
0:02:58.3]} 8... O-O {[%clk 0:02:24.6]} 9. d4 {[%clk 0:02:58.9]} 9... cxd4
{[%clk 0:02:18.1]} 10. cxd4 {[%clk 0:02:59.4]} 10... e5 {[%clk 0:02:19.7]} 11.
Nc3 {[%clk 0:02:58.1]} 11... exd4 {[%clk 0:02:15.3]} 12. Nxd4 {[%clk 0:02:58.3]}
12... Ne5 {[%clk 0:02:07.8]} 13. Bb3 {[%clk 0:02:48.9]} 13... b5 {[%clk
0:01:52.6]} 14. Bg5 {[%clk 0:02:46.3]} 14... h6 {[%clk 0:01:50.8]} 15. Bh4
{[%clk 0:02:46.3]} 15... Bb7 {[%clk 0:01:50]} 16. Nd5 {[%clk 0:02:36.6]} 16...
Bxd5 {[%clk 0:01:34.3]} 17. Bxd5 {[%clk 0:02:37]} 17... Rc8 {[%clk 0:01:34.7]}
18. Qd2 {[%clk 0:01:55.3]} 18... Kh7 {[%clk 0:01:12.9]} 19. b3 {[%clk
0:01:27.2]} 19... Qb6 {[%clk 0:01:11.5]} 20. Rad1 {[%clk 0:01:27.5]} 20... Nxd5
{[%clk 0:01:10.4]} 21. exd5 {[%clk 0:01:28.4]} 21... Rfe8 {[%clk 0:01:08.4]} 22.
Bg3 {[%clk 0:01:20.8]} 22... Nd7 {[%clk 0:00:45]} 23. Nc6 {[%clk 0:01:17.8]}
23... Nf6 {[%clk 0:00:43.7]} 24. Qd3 {[%clk 0:00:46.1]} 24... Rxe1+ {[%clk
0:00:35]} 25. Rxe1 {[%clk 0:00:46.7]} 25... Qc5 {[%clk 0:00:36.5]} 26. h3 {[%clk
0:00:13.5]} 26... Nxd5 {[%clk 0:00:23.7]} 27. Rd1 {[%clk 0:00:05.6]} 27... Nc3
{[%clk 0:00:20.4]} 28. Ne7 {[%clk 0:00:05.4]} 28... Nxd1 {[%clk 0:00:20.4]} 29.
Nxc8 {[%clk 0:00:06.6]} 29... Nxf2 {[%clk 0:00:20.9]} 30. Bxf2 {[%clk
0:00:06.8]} 30... Qxc8 {[%clk 0:00:21.5]} 31. Qxd6 {[%clk 0:00:08]} 31... Qc1+
{[%clk 0:00:22.2]} 32. Kh2 {[%clk 0:00:09]} 32... Qb2 {[%clk 0:00:23.2]} 33. Bg3
{[%clk 0:00:08.6]} 33... Qxa2 {[%clk 0:00:24.1]} 34. Qd5 {[%clk 0:00:09.7]}
34... Kg8 {[%clk 0:00:23]} 35. Qd8+ {[%clk 0:00:10.4]} 35... Kh7 {[%clk
0:00:24.1]} 36. Qd5 {[%clk 0:00:11.5]} 36... f5 {[%clk 0:00:24.6]} 37. Qf7
{[%clk 0:00:12.1]} 37... Qb2 {[%clk 0:00:25.3]} 38. Qe6 {[%clk 0:00:12.7]} 38...
a5 {[%clk 0:00:26]} 39. h4 {[%clk 0:00:13.7]} 39... h5 {[%clk 0:00:26.5]} 40.
Bd6 {[%clk 0:00:10.7]} 40... a4 {[%clk 0:00:27.2]} 41. bxa4 {[%clk 0:00:11.4]}
41... bxa4 {[%clk 0:00:28.2]} 42. Qf7 {[%clk 0:00:09]} 42... Qf6 {[%clk
0:00:28.6]} 0-1